fUSD/lending_fUSD_20241231
["ID","MTS","AMOUNT","RATE_DAILY","PERIOD"]
[347321125,1735685456191,-575.33,0.00011295,2]
[347321126,1735685456201,-500.0,0.00011295,2]
[347321127,1735685456210,-500.0,0.00011295,2]
[347321128,1735685456220,-500.0,0.00011295,2]
[347321129,1735685456230,-1277.99,0.00011295,2]
[347321130,1735685456239,-500.0,0.00011295,2]
[347321131,1735685456250,-880.84,0.00011295,2]
[347321132,1735685456259,-577.63672515,0.00011295,2]
[347321133,1735685456268,-500.0,0.00011295,2]
[347321134,1735685456278,-500.0,0.00011295,2]
[347321135,1735685456287,-952.91547715,0.00011295,2]
[347321136,1735685456306,-271.65452285,0.00011295,2]
[347321137,1735685456315,-500.0,0.00011295,2]
[347321138,1735685456324,-500.0,0.00011295,2]
[347321139,1735685456334,-1750.12,0.00011295,2]
[347321140,1735685456344,-500.0,0.00011295,2]
[347321141,1735685456353,-500.0,0.00011295,2]
[347321142,1735685456362,-520.2,0.00011295,2]
[347321143,1735685456372,-500.0,0.00011295,2]
[347321144,1735685456381,-500.0,0.00011295,2]
[347321145,1735685456390,-500.0,0.00011295,2]
[347321146,1735685456400,-1171.93,0.00011295,2]
[347321147,1735685456411,-500.0,0.00011295,2]
[347321148,1735685456420,-1152.21,0.00011295,2]
[347321149,1735685456430,-490.62772564,0.00011295,2]
[347321150,1735685456439,-500.0,0.00011295,2]
[347321151,1735685456448,-3250.68,0.00011295,2]
[347321152,1735685456457,-500.0,0.00011295,2]
[347321153,1735685456467,-500.0,0.00011295,2]
[347321154,1735685456476,-519.14979986,0.00011295,2]
[347321155,1735685456485,-500.0,0.00011295,2]
[347321156,1735685456495,-1824.85,0.00011295,2]
[347321157,1735685456504,-500.0,0.00011295,2]
[347321158,1735685456514,-500.0,0.00011295,2]
[347321159,1735685456523,-1248.39,0.00011295,2]
[347321160,1735685456532,-500.0,0.00011295,2]
[347321161,1735685456541,-500.0,0.00011295,2]
[347321162,1735685456550,-500.0,0.00011295,2]
[347321163,1735685456560,-500.0,0.00011295,2]
[347321164,1735685456570,-500.0,0.00011295,2]
[347321165,1735685456579,-500.0,0.00011295,2]
[347321166,1735685456590,-2010.0,0.00011295,2]
[347321167,1735685456599,-500.0,0.00011295,2]
[347321168,1735685456608,-500.0,0.00011295,2]
[347321169,1735685456618,-960.18,0.00011295,2]
[347321170,1735685456627,-500.0,0.00011295,2]
[347321171,1735685456636,-500.0,0.00011295,2]
[347321172,1735685456646,-1768.62,0.00011295,2]
[347321173,1735685456655,-2208.88,0.00011295,2]
[347321174,1735685456665,-500.0,0.00011295,2]
[347321175,1735685456675,-500.0,0.00011295,2]
[347321176,1735685456684,-795.36,0.00011295,2]
[347321177,1735685456693,-1538.14,0.00011295,2]
[347321178,1735685456703,-500.0,0.00011295,2]
[347321179,1735685456712,-500.0,0.00011295,2]
[347321180,1735685456721,-500.0,0.00011295,2]
[347321181,1735685456733,-632.37,0.00011295,2]
[347321182,1735685456747,-1120.77,0.00011295,2]
[347321183,1735685456756,-1364.72,0.00011295,2]
[347321184,1735685456765,-500.0,0.00011295,2]
[347321185,1735685456774,-500.0,0.00011295,2]
[347321186,1735685456784,-500.0,0.00011295,2]
[347321187,1735685456793,-1099.26,0.00011295,2]
[347321188,1735685456803,-540.08962083,0.00011295,2]
[347321189,1735685456813,-500.0,0.00011295,2]
[347321190,1735685456822,-1000.06,0.00011295,2]
[347321191,1735685456831,-504.04764831,0.00011295,2]
[347321192,1735685456841,-746.55,0.00011295,2]
[347321193,1735685456850,-500.0,0.00011295,2]
[347321194,1735685456859,-586.0399436,0.00011295,2]
[347321195,1735685456869,-715.0,0.00011295,2]
[347321196,1735685456878,-500.0,0.00011295,2]
[347321197,1735685456887,-850.54,0.00011295,2]
[347321198,1735685456896,-500.0,0.00011295,2]
[347321199,1735685456906,-1018.71,0.00011295,2]
[347321200,1735685456915,-500.0,0.00011295,2]
[347321201,1735685456924,-2126.74,0.00011295,2]
[347321202,1735685456935,-2344.42,0.00011295,2]
[347321203,1735685456943,-661.76,0.00011295,2]
[347321204,1735685456953,-500.0,0.00011295,2]
[347321205,1735685456962,-500.0,0.00011295,2]
[347321206,1735685456971,-500.0,0.00011295,2]
[347321207,1735685456981,-500.0,0.00011295,2]
[347321208,1735685456991,-500.0,0.00011295,2]
[347321209,1735685457000,-500.0,0.00011295,2]
[347321210,1735685457009,-274.62072719,0.00011295,2]
[347321211,1735685457019,-500.0,0.00011295,2]
[347321212,1735685457028,-500.0,0.00011295,2]
[347321213,1735685457037,-3227.08,0.00011295,2]
[347321214,1735685457047,-500.0,0.00011295,2]
[347321215,1735685457056,-840.54,0.00011295,2]
[347321216,1735685457065,-694.36,0.00011295,2]
[347321217,1735685457074,-500.0,0.00011295,2]
[347321218,1735685457083,-500.0,0.00011295,2]
[347321219,1735685457092,-500.0,0.00011295,2]
[347321220,1735685457101,-500.0,0.00011295,2]
[347321221,1735685457110,-576.38,0.00011295,2]
[347321222,1735685457119,-633.91,0.00011295,2]
[347321223,1735685457129,-500.0,0.00011295,2]
[347321224,1735685457138,-500.0,0.00011295,2]
[347321225,1735685457148,-500.0,0.00011295,2]
[347321226,1735685457159,-1719.45,0.00011295,2]
[347321227,1735685457169,-500.0,0.00011295,2]
[347321228,1735685457178,-500.0,0.00011295,2]
[347321229,1735685457188,-804.68,0.00011295,2]
[347321230,1735685457197,-500.0,0.00011295,2]
[347321231,1735685457206,-500.0,0.00011295,2]
[347321232,1735685457215,-500.0,0.00011295,2]
[347321233,1735685457224,-500.0,0.00011295,2]
[347321234,1735685457235,-500.0,0.00011295,2]
[347321235,1735685457244,-507.87,0.00011295,2]
[347321236,1735685457256,-531.0,0.00011295,2]
[347321237,1735685457267,-500.0,0.00011295,2]
[347321238,1735685457275,-207.77958401,0.00011295,2]
[347321239,1735685457286,-1182.29,0.00011295,2]
[347321240,1735685457297,-500.0,0.00011295,2]
[347321241,1735685457306,-836.24,0.00011295,2]
[347321242,1735685457316,-500.0,0.00011295,2]
[347321243,1735685457326,-500.0,0.00011295,2]
[347321244,1735685457336,-1408.27,0.00011295,2]
[347321245,1735685457345,-500.0,0.00011295,2]
[347321246,1735685457354,-1111.43,0.00011295,2]
[347321247,1735685457363,-500.0,0.00011295,2]
[347321248,1735685457372,-512.15,0.00011295,2]
[347321249,1735685457381,-500.0,0.00011295,2]
[347321250,1735685457391,-500.0,0.00011295,2]
[347321251,1735685457400,-500.0,0.00011295,2]
[347321252,1735685457409,-500.0,0.00011295,2]
[347321253,1735685457418,-614.29,0.00011295,2]
[347321254,1735685457427,-500.0,0.00011295,2]
[347321255,1735685457436,-500.0,0.00011295,2]
[347321256,1735685457445,-550.61,0.00011295,2]
[347321257,1735685457455,-500.0,0.00011295,2]
[347321258,1735685457464,-500.0,0.00011295,2]
[347321259,1735685457472,-3338.81,0.00011295,2]
[347321260,1735685457481,-654.86,0.00011295,2]
[347321261,1735685457491,-500.0,0.00011295,2]
[347321262,1735685457501,-500.0,0.00011295,2]
[347321263,1735685457510,-500.0,0.00011295,2]
[347321264,1735685457519,-874.8,0.00011295,2]
[347321265,1735685457528,-607.26,0.00011295,2]
[347321266,1735685457537,-500.0,0.00011295,2]
[347321267,1735685457546,-834.03,0.00011295,2]
[347321268,1735685457556,-500.0,0.00011295,2]
[347321269,1735685457565,-500.0,0.00011295,2]
[347321270,1735685457576,-500.0,0.00011295,2]
[347321271,1735685457585,-500.0,0.00011295,2]
[347321272,1735685457594,-500.0,0.00011295,2]
[347321273,1735685457603,-590.59,0.00011295,2]
[347321274,1735685457612,-500.0,0.00011295,2]
[347321275,1735685457621,-500.0,0.00011295,2]
[347321276,1735685457630,-778.12,0.00011295,2]
[347321277,1735685457639,-2341.31,0.00011295,2]
[347321278,1735685457648,-504.66002599,0.00011295,2]
[347321279,1735685457658,-500.0,0.00011295,2]
[347321280,1735685457666,-500.0,0.00011295,7]
[347321281,1735685457675,-500.0,0.00011295,2]
[347321282,1735685457684,-490.22684176,0.00011295,2]
[347321283,1735685457694,-1146.28,0.00011295,2]
[347321284,1735685457703,-500.0,0.00011295,2]
[347321285,1735685457712,-500.0,0.00011295,2]
[347321286,1735685457720,-3443.19,0.00011295,2]
[347321287,1735685457730,-2435.08,0.00011295,2]
[347321288,1735685457743,-2476.09,0.00011295,2]
[347321289,1735685457752,-500.0,0.00011295,2]
[347321290,1735685457761,-1605.81,0.00011295,2]
[347321291,1735685457770,-4814.97,0.00011295,2]
[347321292,1735685457780,-500.0,0.00011295,2]
[347321293,1735685457789,-500.0,0.00011295,2]
[347321294,1735685457799,-500.0,0.00011295,2]
[347321295,1735685457808,-1910.65,0.00011295,2]
[347321296,1735685457818,-500.0,0.00011295,2]
[347321297,1735685457827,-2281.63,0.00011295,2]
[347321298,1735685457836,-500.0,0.00011295,2]
[347321299,1735685457845,-2358.13,0.00011295,2]
[347321300,1735685457854,-873.66,0.00011295,2]
[347321301,1735685457863,-1596.02,0.00011295,2]
[347321302,1735685457871,-300.0,0.00011295,2]
[347321303,1735685457880,-500.0,0.00011295,2]
[347321304,1735685457889,-500.0,0.00011295,2]
[347321305,1735685457898,-2983.3,0.00011295,2]
[347321306,1735685457908,-301.27850992,0.00011295,2]
[347321307,1735685457917,-2778.68,0.00011295,2]
[347321308,1735685457926,-2481.7,0.00011295,2]
[347321309,1735685457937,-500.0,0.00011295,2]
[347321310,1735685457946,-697.03,0.00011295,2]
[347321311,1735685457957,-500.0,0.00011295,2]
[347321312,1735685457968,-987.76,0.00011295,2]
[347321313,1735685457978,-500.0,0.00011295,2]
[347321314,1735685457987,-500.0,0.00011295,2]
[347321315,1735685457999,-500.0,0.00011295,2]
[347321316,1735685458009,-500.0,0.00011295,2]
[347321317,1735685458019,-500.0,0.00011295,2]
[347321318,1735685458028,-500.0,0.00011295,2]
[347321319,1735685458038,-500.0,0.00011295,2]
[347321320,1735685458049,-500.0,0.00011295,2]
[347321321,1735685458060,-1896.96,0.00011295,2]
[347321322,1735685458071,-748.36,0.00011295,2]
[347321323,1735685458081,-820.88,0.00011295,2]
[347321324,1735685458089,-2013.26,0.00011295,2]
[347321325,1735685458099,-500.0,0.00011295,2]
[347321326,1735685458108,-3236.04,0.00011295,2]
[347321327,1735685458117,-500.0,0.00011295,2]
[347321328,1735685458126,-500.0,0.00011295,2]
[347321329,1735685458134,-3250.37,0.00011295,2]
[347321330,1735685458143,-500.0,0.00011295,2]
[347321331,1735685458152,-500.0,0.00011295,2]
[347321332,1735685458161,-156.3024567,0.00011295,2]
[347321333,1735685458170,-500.0,0.00011295,2]
[347321334,1735685458179,-682.02,0.00011295,2]
[347321335,1735685458188,-6319.07,0.00011295,2]
[347321336,1735685458198,-738.74,0.00011295,2]
[347321337,1735685458207,-500.0,0.00011295,2]
[347321338,1735685458216,-5420.74,0.00011295,2]
[347321339,1735685458225,-633.29158523,0.00011295,2]
[347321340,1735685458234,-500.0,0.00011295,2]
[347321341,1735685458244,-500.0,0.00011295,2]
[347321342,1735685458254,-500.0,0.00011295,2]
[347321343,1735685458264,-500.0,0.00011295,2]
[347321344,1735685458274,-1500.05,0.00011295,2]
[347321345,1735685458284,-500.0,0.00011295,2]
[347321346,1735685458293,-711.88,0.00011295,2]
[347321347,1735685458303,-1093.01,0.00011295,2]
[347321348,1735685458312,-500.0,0.00011295,2]
[347321349,1735685458321,-1639.65,0.00011295,2]
[347321350,1735685458330,-6451.44,0.00011295,2]
[347321351,1735685458339,-500.0,0.00011295,2]
[347321352,1735685458348,-1056.68,0.00011295,2]
[347321353,1735685458358,-500.0,0.00011295,2]
[347321354,1735685458367,-695.27,0.00011295,2]
[347321355,1735685458376,-500.0,0.00011295,2]
[347321356,1735685458385,-500.0,0.00011295,2]
[347321357,1735685458394,-1749.92,0.00011295,2]
[347321358,1735685458403,-500.0,0.00011295,2]
[347321359,1735685458412,-500.0,0.00011295,2]
[347321360,1735685458422,-1833.81,0.00011295,2]
[347321361,1735685458664,-541.28,0.00011295,2]
[347321362,1735685458673,-349.06188141,0.00011295,2]
[347321363,1735685458682,-512.38,0.00011295,2]
[347321364,1735685458692,-500.0,0.00011295,2]
[347321365,1735685458702,-3212.69,0.00011295,2]
[347321366,1735685458711,-650.42,0.00011295,2]
[347321367,1735685458720,-3354.78,0.00011295,2]
[347321368,1735685458729,-2518.6,0.00011295,2]
[347321369,1735685458741,-500.0,0.00011295,2]
[347321370,1735685458750,-500.0,0.00011295,2]
[347321371,1735685458759,-500.0,0.00011295,2]
[347321372,1735685458767,-500.0,0.00011295,2]
[347321373,1735685458776,-500.0,0.00011295,2]
[347321374,1735685458786,-595.72601932,0.00011295,2]
[347321375,1735685458795,-500.0,0.00011295,2]
[347321376,1735685458804,-547.48,0.00011295,2]
[347321377,1735685458815,-500.0,0.00011295,2]
[347321378,1735685458824,-998.75,0.00011295,2]
[347321379,1735685458833,-500.0,0.00011295,2]
[347321380,1735685458842,-1750.07,0.00011295,2]
[347321381,1735685458851,-500.0,0.00011295,2]
[347321382,1735685458860,-616.07,0.00011295,2]
[347321383,1735685458869,-1034.47,0.00011295,2]
[347321384,1735685458878,-1527.26,0.00011295,2]
[347321385,1735685458887,-931.87,0.00011295,2]
[347321386,1735685458896,-500.0,0.00011295,2]
[347321387,1735685458905,-3642.8,0.00011295,2]
[347321388,1735685458914,-3034.33,0.00011295,2]
[347321389,1735685458923,-500.0,0.00011295,2]
[347321390,1735685458932,-500.0,0.00011295,2]
[347321391,1735685458941,-755.78,0.00011295,2]
[347321392,1735685458950,-1767.93,0.00011295,2]
[347321393,1735685458959,-500.0,0.00011295,2]
[347321394,1735685458968,-1271.23,0.00011295,2]
[347321395,1735685458977,-2158.07,0.00011295,2]
[347321396,1735685458986,-1000.0,0.00011295,2]
[347321397,1735685458995,-2852.37,0.00011295,2]
[347321398,1735685459004,-791.95,0.00011295,2]
[347321399,1735685459013,-500.0,0.00011295,2]
[347321400,1735685459022,-967.19,0.00011295,2]
[347321401,1735685459031,-500.0,0.00011295,2]
[347321402,1735685459040,-500.0,0.00011295,2]
[347321403,1735685459049,-500.0,0.00011295,2]
[347321404,1735685459059,-500.0,0.00011295,2]
[347321405,1735685459068,-500.0,0.00011295,2]
[347321406,1735685459078,-500.0,0.00011295,2]
[347321407,1735685459087,-500.0,0.00011295,2]
[347321408,1735685459096,-500.0,0.00011295,2]
[347321409,1735685459105,-1457.41,0.00011295,2]
[347321410,1735685459114,-769.77,0.00011295,2]
[347321411,1735685459123,-4894.69,0.00011295,2]
[347321412,1735685459132,-1552.22,0.00011295,2]
[347321413,1735685459144,-3488.09,0.00011295,2]
[347321414,1735685459153,-2645.88,0.00011295,2]
[347321415,1735685459162,-1383.51,0.00011295,2]
[347321416,1735685459171,-905.57,0.00011295,2]
[347321417,1735685459181,-3014.02,0.00011295,2]
[347321418,1735685459190,-500.0,0.00011295,2]
[347321419,1735685459199,-1244.12,0.00011295,2]
[347321420,1735685459208,-701.95,0.00011295,2]
[347321421,1735685459217,-991.53,0.00011295,2]
[347321422,1735685459226,-500.0,0.00011295,2]
[347321423,1735685459237,-949.25,0.00011295,2]
[347321424,1735685459248,-3254.1,0.00011295,2]
[347321425,1735685459258,-500.0,0.00011295,2]
[347321426,1735685459268,-2124.77,0.00011295,2]
[347321427,1735685459277,-1058.68,0.00011295,2]
[347321428,1735685459286,-3218.18,0.00011295,2]
[347321429,1735685459295,-2558.56,0.00011295,2]
[347321430,1735685459304,-500.0,0.00011295,2]
[347321431,1735685459314,-787.51,0.00011295,2]
[347321432,1735685459323,-2333.93,0.00011295,2]
[347321433,1735685459332,-1276.17,0.00011295,2]
[347321434,1735685459343,-500.0,0.00011295,2]
[347321435,1735685459352,-500.0,0.00011295,2]
[347321436,1735685459361,-4007.25,0.00011295,2]
[347321437,1735685459371,-500.0,0.00011295,2]
[347321438,1735685459379,-500.0,0.00011295,2]
[347321439,1735685459389,-528.76,0.00011295,2]
[347321440,1735685459398,-500.0,0.00011295,2]
[347321441,1735685459408,-500.0,0.00011295,2]
[347321442,1735685459417,-1229.85,0.00011295,2]
[347321443,1735685459428,-1114.45,0.00011295,2]
[347321444,1735685459438,-3547.41,0.00011295,2]
[347321445,1735685459447,-558.43,0.00011295,2]
[347321446,1735685459457,-926.81,0.00011295,2]
[347321447,1735685459466,-1131.94,0.00011295,2]
[347321448,1735685459475,-750.66,0.00011295,2]
[347321449,1735685459485,-2243.32,0.00011295,2]
[347321450,1735685459494,-500.0,0.00011295,2]
[347321451,1735685459503,-500.0,0.00011295,2]
[347321452,1735685459512,-639.3,0.00011295,2]
[347321453,1735685459521,-5346.71,0.00011295,2]
[347321454,1735685459530,-1718.07,0.00011295,2]
[347321455,1735685459539,-2577.48,0.00011295,2]
[347321456,1735685459548,-1249.9,0.00011295,2]
[347321457,1735685459557,-1851.35,0.00011295,2]
[347321458,1735685459567,-677.1,0.00011295,2]
[347321459,1735685459576,-500.0,0.00011295,2]
[347321460,1735685459585,-500.0,0.00011295,2]
[347321461,1735685459594,-2829.74,0.00011295,2]
[347321462,1735685459603,-650.95,0.00011295,2]
[347321463,1735685459612,-2201.83,0.00011295,2]
[347321464,1735685459622,-5950.54,0.00011295,2]
[347321465,1735685459632,-1481.39,0.00011295,2]
[347321466,1735685459643,-1169.02,0.00011295,2]
[347321467,1735685459654,-9569.33,0.00011295,2]
[347321468,1735685459664,-505.45,0.00011296,2]
[347321469,1735685459676,-3612.15,0.00011296,2]
[347321470,1735685459686,-2635.57,0.00011296,2]
[347321471,1735685459695,-3303.52,0.00011296,2]
[347321472,1735685459704,-2747.65,0.00011296,2]
[347321473,1735685459713,-500.0,0.00011296,2]
[347321474,1735685459722,-5384.39,0.00011296,2]
[347321475,1735685459731,-3800.43,0.00011296,2]
[347321476,1735685459745,-5022.01,0.00011296,2]
[347321477,1735685459755,-2351.95,0.00011296,2]
[347321478,1735685459765,-500.0,0.00011296,2]
[347321479,1735685459774,-4507.28,0.00011296,2]
[347321480,1735685459785,-3506.72,0.00011296,2]
[347321481,1735685459794,-500.0,0.00011296,2]
[347321482,1735685459803,-1626.9,0.00011296,2]
[347321483,1735685459811,-5499.86,0.00011296,2]
[347321484,1735685459822,-4940.49,0.00011296,2]
[347321485,1735685459831,-1189.57,0.00011296,2]
[347321486,1735685459840,-2145.13,0.00011296,2]
[347321487,1735685459849,-3121.35,0.00011296,2]
[347321488,1735685459858,-1051.58,0.00011296,2]
[347321489,1735685459867,-500.0,0.00011296,2]
[347321490,1735685459877,-491.56,0.00011297,2]
[347321491,1735685459887,-807.47,0.00011297,2]
[347321492,1735685459898,-692.55,0.00011297,2]
[347321493,1735685459907,-1243.63,0.00011297,2]
[347321494,1735685459916,-500.0,0.00011297,2]
[347321495,1735685459925,-500.0,0.00011297,2]
[347321496,1735685459936,-928.97,0.00011297,2]
[347321497,1735685459947,-500.0,0.00011297,2]
[347321498,1735685459957,-876.6,0.00011297,2]
[347321499,1735685459966,-500.0,0.00011297,2]
[347321500,1735685459976,-500.0,0.00011297,2]
[347321501,1735685459986,-512.42,0.00011297,2]
[347321502,1735685459995,-500.0,0.00011297,2]
[347321503,1735685460005,-1688.39,0.00011297,2]
[347321504,1735685460015,-1176.15,0.00011297,2]
[347321505,1735685460026,-2244.71,0.00011297,2]
[347321506,1735685460035,-677.88,0.00011297,2]
[347321507,1735685460044,-500.0,0.00011297,2]
[347321508,1735685460054,-560.92083539,0.00011297,2]
[347321509,1735685460064,-500.0,0.00011297,2]
[347321510,1735685460073,-500.0,0.00011297,2]
[347321511,1735685460082,-1261.19,0.00011297,2]
[347321512,1735685460091,-500.0,0.00011297,2]
[347321513,1735685460101,-500.0,0.00011297,2]
[347321514,1735685460110,-500.0,0.00011297,2]
[347321515,1735685460118,-2559.4,0.00011297,2]
[347321516,1735685460127,-647.05,0.00011297,2]
[347321517,1735685460136,-500.0,0.00011297,2]
[347321518,1735685460145,-500.0,0.00011297,2]
[347321519,1735685460154,-1992.12,0.00011297,2]
[347321520,1735685460164,-500.0,0.00011297,2]
[347321521,1735685460173,-1248.8,0.00011297,2]
[347321522,1735685460182,-500.0,0.00011297,2]
[347321523,1735685460191,-775.34,0.00011297,2]
[347321524,1735685460200,-500.0,0.00011297,2]
[347321525,1735685460210,-2210.22,0.00011297,2]
[347321526,1735685460219,-500.0,0.00011297,2]
[347321527,1735685460229,-500.0,0.00011297,2]
[347321528,1735685460239,-790.57,0.00011297,2]
[347321529,1735685460249,-500.0,0.00011297,2]
[347321530,1735685460258,-500.0,0.00011297,2]
[347321531,1735685460267,-500.0,0.00011297,2]
[347321532,1735685460276,-150.0,0.00011297,2]
[347321533,1735685460286,-556.02,0.00011297,2]
[347321534,1735685460295,-500.0,0.00011297,2]
[347321535,1735685460303,-5000.0,0.00011297,2]
[347321536,1735685460312,-2236.31,0.00011297,2]
[347321537,1735685460322,-1034.89,0.00011297,2]
[347321538,1735685460331,-500.0,0.00011297,2]
[347321539,1735685460339,-1778.59,0.00011297,2]
[347321540,1735685460348,-1919.78,0.00011297,2]
[347321541,1735685460357,-500.0,0.00011297,2]
[347321542,1735685460366,-500.0,0.00011297,2]
[347321543,1735685460375,-3030.38,0.00011297,2]
[347321544,1735685460384,-500.0,0.00011297,2]
[347321545,1735685460392,-1032.65,0.00011297,2]
[347321546,1735685460401,-4696.84,0.00011297,2]
[347321547,1735685460410,-500.0,0.00011297,2]
[347321548,1735685460419,-500.0,0.00011297,2]
[347321549,1735685460428,-654.07,0.00011297,2]
[347321550,1735685460437,-500.0,0.00011297,2]
[347321551,1735685460446,-733.77,0.00011297,2]
[347321552,1735685460455,-500.0,0.00011297,2]
[347321553,1735685460464,-1631.75,0.00011297,2]
[347321554,1735685460474,-3634.27,0.00011297,2]
[347321555,1735685460484,-1037.45,0.00011297,2]
[347321556,1735685460493,-1423.37,0.00011297,2]
[347321557,1735685460502,-2880.54,0.00011297,2]
[347321558,1735685460511,-554.37,0.00011297,2]
[347321559,1735685460521,-787.78,0.00011297,2]
[347321560,1735685460530,-3740.47,0.00011297,2]
[347321561,1735685460539,-2200.22,0.00011297,2]
[347321562,1735685460548,-500.0,0.00011297,2]
[347321563,1735685460556,-1296.9,0.00011297,2]
[347321564,1735685460565,-501.4,0.00011297,2]
[347321565,1735685460574,-3234.72,0.00011297,2]
[347321566,1735685460583,-589.02,0.00011297,2]
[347321567,1735685460592,-2086.91,0.00011297,2]
[347321568,1735685460600,-500.0,0.00011297,2]
[347321569,1735685460609,-416.74181256,0.00011297,2]
[347321570,1735685460618,-1055.81,0.00011297,2]
[347321571,1735685460627,-2499.78,0.00011297,2]
[347321572,1735685460636,-583.32140904,0.00011297,2]
[347321573,1735685460645,-1800.74,0.00011297,2]
[347321574,1735685460654,-1543.76,0.00011297,2]
[347321575,1735685460663,-500.0,0.00011297,2]
[347321576,1735685460672,-8614.5,0.00011297,2]
[347321577,1735685460681,-4183.82,0.00011297,2]
[347321578,1735685460691,-14261.31,0.00011297,2]
[347321579,1735685460699,-33293.5,0.00011297,2]
[347321580,1735685460708,-1952.01,0.00011297,2]
[347321581,1735685460718,-3586.35,0.00011297,2]
[347321582,1735685460727,-3083.15,0.00011298,2]
[347321583,1735685460738,-22418.75,0.00011298,2]
[347321584,1735685460748,-19616.41,0.00011298,2]
[347321585,1735685460757,-3089.04,0.00011298,2]
[347321586,1735685460766,-3538.91,0.00011298,2]
[347321587,1735685460775,-7435.44,0.00011298,2]
[347321588,1735685460786,-500.0,0.00011298,2]
[347321589,1735685460795,-6355.73,0.00011298,2]
[347321590,1735685460804,-6445.7,0.00011298,2]
[347321591,1735685460814,-2905.6,0.00011298,2]
[347321592,1735685460823,-5304.26,0.00011298,2]
[347321593,1735685460832,-5469.57,0.00011298,2]
[347321594,1735685460841,-4934.37,0.00011298,2]
[347321595,1735685460850,-500.0,0.00011298,2]
[347321596,1735685460859,-10657.13,0.00011298,2]
[347321597,1735685460868,-10331.82,0.00011298,2]
[347321598,1735685460879,-9011.79,0.00011298,2]
[347321599,1735685460887,-17511.91,0.00011298,2]
[347321600,1735685460896,-9587.26,0.00011298,2]
[347321601,1735685460906,-21317.58,0.00011298,2]
[347321602,1735685460915,-550.54,0.00011298,2]
[347321603,1735685460925,-8553.39,0.00011298,2]
[347321604,1735685460934,-7719.09,0.00011298,2]
[347321605,1735685460944,-4085.9,0.00011298,2]
[347321606,1735685460952,-500.0,0.00011298,2]
[347321607,1735685460961,-5687.31,0.00011298,2]
[347321608,1735685460970,-16591.17,0.00011298,2]
[347321609,1735685460979,-1203.734,0.00011389,2]
[347321610,1735685460988,-2953.38061,0.0001139,2]
[347321611,1735685460998,-2953.38061,0.0001139,2]
[347321612,1735685461009,-671.33188,0.0001139,2]
[347321613,1735685461021,-8431.06589361,0.000114,2]
[347321614,1735685461031,-174.39051367,0.000114,2]
[347321615,1735685461040,-750.0,0.000114,2]
[347321616,1735685461050,-2953.38061,0.0001142,2]
[347321617,1735685461059,-2953.38061,0.0001147,2]
[347321618,1735685461068,-500.0,0.00011473,2]
[347321619,1735685461079,-97546.68623669,0.00011499,2]
[347321620,1735685532789,565.29,0.00010574,2]
[347321621,1735685567365,200.0,0.000109,3]
[347321623,1735685714613,180.147,0.0001092,2]
[347321624,1735685818023,165.42,0.00010771,2]
[347321625,1735685897438,1000.0,0.00010434,2]